bitfinex-derivatives/quotes_BTCF0:USTF0_20241020
["timestamp","ask_amount","ask_price","bid_price","bid_amount"]
[1729429686392,0.073138,68367.0,68366.0,0.0004]
[1729429686604,0.15385939,68367.0,68366.0,0.0004]
[1729429688004,0.073138,68367.0,68366.0,0.0004]
[1729429688501,0.163058,68367.0,68366.0,0.0004]
[1729429688904,2.101858,68367.0,68366.0,0.0004]
[1729429689101,0.073142,68363.0,68353.0,0.0012]
[1729429689405,0.433942,68363.0,68353.0,0.0012]
[1729429691008,0.073149,68357.0,68353.0,0.0012]
[1729429691209,0.433949,68357.0,68353.0,0.0012]
[1729429701608,0.523869,68357.0,68353.0,0.0012]
[1729429704016,0.5597021,68357.0,68353.0,0.0012]
[1729429704417,0.55970246,68357.0,68353.0,0.0012]
[1729429705016,0.523869,68357.0,68353.0,0.0012]
[1729429705423,2.023869,68357.0,68353.0,0.0012]
[1729429710328,2.05970132,68357.0,68353.0,0.0012]
[1729429710533,2.023869,68357.0,68353.0,0.0012]
[1729429717539,2.10461319,68357.0,68353.0,0.0012]
[1729429718831,2.10461257,68357.0,68353.0,0.0012]
[1729429722534,2.05970037,68357.0,68353.0,0.0012]
[1729429725542,2.023869,68357.0,68353.0,0.0012]
[1729429728451,2.023869,68357.0,68353.0,0.0316]
[1729429732550,2.10461605,68357.0,68353.0,0.0316]
[1729429733158,2.10461573,68357.0,68353.0,0.0316]
[1729429735257,1.74381573,68357.0,68353.0,0.0316]
[1729429735453,2.10461573,68357.0,68353.0,0.0316]
[1729429735959,1.74381573,68357.0,68353.0,0.0316]
[1729429736360,2.10461573,68357.0,68353.0,0.0316]
[1729429737563,1.74381573,68357.0,68353.0,0.0316]
[1729429737763,2.10461573,68357.0,68353.0,0.0316]
[1729429737967,1.74381573,68357.0,68353.0,0.0316]
[1729429738461,2.10461573,68357.0,68353.0,0.0316]
[1729429740553,2.023869,68357.0,68353.0,0.07549594]
[1729429741261,2.023869,68357.0,68353.0,0.0316]
[1729429741660,2.023869,68357.0,68353.0,0.07549594]
[1729429742071,2.023869,68357.0,68354.0,0.04389594]
[1729429743063,2.023869,68357.0,68353.0,0.07549594]
[1729429743262,2.023869,68357.0,68354.0,0.04389594]
[1729429743459,2.023869,68357.0,68353.0,0.07549594]
[1729429743864,2.023869,68357.0,68353.0,0.0316]
[1729429744867,2.023869,68357.0,68353.0,0.07549594]
[1729429746374,2.023869,68357.0,68354.0,0.04389594]
[1729429746771,2.023869,68357.0,68353.0,0.07549594]
[1729429747671,2.023869,68357.0,68353.0,0.0316]
[1729429751273,1.933949,68357.0,68353.0,0.0316]
[1729429751481,2.023869,68357.0,68353.0,0.0316]
[1729429755775,2.10461527,68357.0,68353.0,0.0316]
[1729429756278,2.15709672,68357.0,68353.0,0.0316]
[1729429758579,2.10461527,68357.0,68353.0,0.0316]
[1729429760292,2.10461425,68357.0,68353.0,0.0316]
[1729429762688,2.023869,68357.0,68353.0,0.0316]
[1729429770787,2.10461432,68357.0,68353.0,0.0316]
[1729429777197,2.10461432,68357.0,68353.0,0.0312]
[1729429777791,2.023869,68357.0,68353.0,0.0312]
[1729429785688,2.10461479,68357.0,68353.0,0.0312]
[1729429789101,2.10461526,68357.0,68353.0,0.0312]
[1729429792691,2.023869,68357.0,68353.0,0.0312]
[1729429793504,2.023869,68357.0,68354.0,0.04389594]
[1729429793709,2.023869,68357.0,68353.0,0.07509594]
[1729429796610,2.023869,68357.0,68353.0,0.0312]
[1729429800804,2.15709684,68357.0,68353.0,0.0312]
[1729429803217,2.10461543,68357.0,68353.0,0.0312]
[1729429806407,1.74381543,68357.0,68353.0,0.0312]
[1729429806612,2.10461543,68357.0,68353.0,0.0312]
[1729429806915,2.10461699,68357.0,68353.0,0.0312]
[1729429807717,2.023869,68357.0,68353.0,0.0312]
[1729429822827,2.10461506,68357.0,68353.0,0.0312]
[1729429823336,2.10461518,68357.0,68353.0,0.0312]
[1729429826739,2.10461449,68357.0,68353.0,0.0312]
[1729429828139,2.10461639,68357.0,68353.0,0.0312]
[1729429830846,2.023869,68357.0,68353.0,0.0312]
[1729429832353,2.023869,68357.0,68353.0,0.0308]
[1729429836344,1.933949,68357.0,68353.0,0.0308]
[1729429836556,2.023829,68357.0,68353.0,0.0308]
[1729429844156,1.933949,68357.0,68353.0,0.0308]
[1729429844358,2.023829,68357.0,68353.0,0.0308]
[1729429846063,2.10457209,68357.0,68353.0,0.0308]
[1729429852161,2.10457029,68357.0,68353.0,0.0308]
[1729429852856,2.023829,68357.0,68353.0,0.0308]
[1729429859065,2.023789,68357.0,68353.0,0.0308]
[1729429860472,2.023789,68357.0,68354.0,0.04391614]
[1729429860670,2.023789,68357.0,68353.0,0.07471614]
[1729429860971,2.05961914,68357.0,68353.0,0.0308]
[1729429861562,1.96977914,68357.0,68353.0,0.0308]
[1729429861759,2.05961914,68357.0,68353.0,0.0308]
[1729429862764,1.69881914,68357.0,68353.0,0.0308]
[1729429864876,1.60897914,68357.0,68353.0,0.0308]
[1729429865072,1.69881914,68357.0,68353.0,0.0308]
[1729429865374,1.74372979,68357.0,68353.0,0.0308]
[1729429867967,1.662989,68357.0,68353.0,0.0308]
[1729429873678,2.023789,68357.0,68353.0,0.0308]
[1729429875079,2.10453157,68357.0,68353.0,0.0308]
[1729429875278,2.023789,68357.0,68353.0,0.0308]
[1729429877472,1.662989,68357.0,68353.0,0.0308]
[1729429877673,2.023789,68357.0,68353.0,0.0308]
[1729429877871,1.69881993,68357.0,68353.0,0.0308]
[1729429878083,2.10453157,68357.0,68353.0,0.0308]
[1729429878282,1.74373157,68357.0,68353.0,0.0308]
[1729429878484,1.70790064,68357.0,68353.0,0.0308]
[1729429878680,2.023789,68357.0,68353.0,0.0308]
[1729429878886,2.10453155,68357.0,68353.0,0.0308]
[1729429880073,2.10453157,68357.0,68353.0,0.0308]
[1729429883087,0.073153,68353.0,68345.0,0.04391614]
[1729429883283,0.073164,68343.0,68342.0,0.04391614]
[1729429883479,0.08984,68343.0,68339.0,0.04611068]
[1729429883681,0.073167,68340.0,68339.0,0.04611068]
[1729429883995,0.073167,68340.0,68339.0,0.00219454]
[1729429884292,1.573167,68340.0,68339.0,0.00219454]
[1729429886603,1.59936296,68340.0,68339.0,0.00219454]
[1729429886791,1.96016296,68340.0,68339.0,0.00219454]
[1729429888883,0.073172,68335.0,68333.0,0.065]
[1729429891293,0.073173,68334.0,68333.0,0.065]
[1729429900690,0.073173,68334.0,68327.0,0.04391614]
[1729429900691,0.07318,68328.0,68327.0,0.04391614]
[1729429901392,0.073182,68326.0,68325.0,0.0934]
[1729429905203,0.073182,68326.0,68325.0,0.166583]
[1729429906197,0.073182,68326.0,68325.0,0.22513785]
[1729429906801,0.10010561,68326.0,68325.0,0.22513785]
[1729429906994,0.10010561,68326.0,68325.0,0.166583]
[1729429907594,0.10010561,68326.0,68325.0,0.22513785]
[1729429907802,0.10010561,68326.0,68325.0,0.166583]
[1729429908899,0.10010561,68326.0,68325.0,0.22513785]
[1729429909812,0.10010561,68326.0,68325.0,0.22501997]
[1729429910303,0.10010561,68326.0,68325.0,0.166583]
[1729429920302,0.10010561,68326.0,68325.0,0.23977657]
[1729429921419,0.10010561,68326.0,68325.0,0.3449011]
[1729429921605,0.10010561,68326.0,68325.0,0.34488471]
[1729429922911,0.10010561,68326.0,68325.0,0.34488008]
[1729429924503,0.10010561,68326.0,68325.0,0.27168651]
[1729429924818,0.10010561,68326.0,68325.0,0.34487429]
[1729429925510,0.10010561,68326.0,68325.0,0.27168651]
[1729429926706,0.10010561,68326.0,68325.0,0.17828651]
[1729429926918,0.10010561,68326.0,68325.0,0.25148171]
[1729429928216,0.10010561,68326.0,68325.0,0.25158149]
[1729429928512,0.10010561,68326.0,68325.0,0.17838629]
[1729429928708,0.10010561,68326.0,68325.0,0.25158802]
[1729429929520,0.10010561,68326.0,68325.0,0.17838629]
[1729429930220,0.46090561,68326.0,68325.0,0.10520329]
[1729429930415,0.46090561,68326.0,68325.0,0.1784207]
[1729429930610,0.46090561,68326.0,68325.0,0.07321741]
[1729429930919,0.10010561,68326.0,68325.0,0.07321741]
[1729429931114,0.10010561,68326.0,68325.0,0.17844971]
[1729429931308,0.10010561,68326.0,68325.0,0.07321741]
[1729429931707,0.02692361,68326.0,68324.0,0.14640141]
[1729429931911,0.073183,68325.0,68324.0,0.14640141]
[1729429932405,0.3608,68327.0,68321.0,0.07321741]
[1729429932602,0.433981,68327.0,68326.0,0.05856156]
[1729429933512,0.073182,68326.0,68325.0,0.05856156]
[1729429934017,0.073182,68326.0,68321.0,0.14640441]
[1729429934018,0.073186,68322.0,68321.0,0.073187]
[1729429934218,0.073186,68322.0,68321.0,0.14637746]
[1729429934612,0.073186,68322.0,68321.0,0.073187]
[1729429941018,0.09903704,68322.0,68321.0,0.073187]
[1729429946417,0.09903704,68322.0,68321.0,0.1317352]
[1729429946635,0.02585104,68322.0,68320.0,0.0585482]
[1729429946927,0.073187,68321.0,68320.0,0.0585482]
[1729429947115,0.073188,68320.0,68319.0,0.1317372]
[1729429948215,1.573188,68320.0,68319.0,0.1317372]
[1729429948724,1.573188,68320.0,68319.0,0.073189]
[1729429950113,0.073188,68320.0,68319.0,0.073189]
[1729429950923,0.09935301,68320.0,68319.0,0.073189]
[1729429954324,1.933985,68324.0,68319.0,0.073189]
[1729429954527,0.433985,68324.0,68323.0,0.073185]
[1729429954736,0.45975585,68324.0,68323.0,0.073185]
[1729429955341,0.433985,68324.0,68323.0,0.073185]
[1729429956530,0.46983047,68324.0,68323.0,0.073185]
[1729429957523,0.10903047,68324.0,68323.0,0.073185]
[1729429958227,0.073185,68324.0,68323.0,0.073185]
[1729429965740,0.10902884,68324.0,68323.0,0.073185]
[1729429966826,0.10902884,68324.0,68319.0,0.3608]
[1729429966827,0.03584384,68324.0,68319.0,0.3608]
[1729429967030,0.073188,68320.0,68319.0,0.433988]
[1729429968039,0.10903333,68320.0,68319.0,0.433988]
[1729429968344,0.073188,68320.0,68319.0,0.433988]
[1729429973541,0.073188,68320.0,68319.0,0.49253628]
[1729429974231,0.073188,68320.0,68319.0,0.13173628]
[1729429974431,0.073188,68320.0,68319.0,0.073188]
[1729429974639,0.073188,68320.0,68319.0,0.13173628]
[1729429975441,0.073188,68320.0,68319.0,0.073188]
[1729429975944,0.073188,68320.0,68319.0,0.13173628]
[1729429976736,0.073188,68320.0,68319.0,0.073188]
[1729429977545,0.073188,68320.0,68319.0,0.13173628]
[1729429977939,0.073188,68320.0,68319.0,0.073188]
[1729429979850,0.073188,68320.0,68319.0,0.13173628]
[1729429980639,0.073188,68320.0,68319.0,0.073188]
[1729429993041,0.10903428,68320.0,68319.0,0.073188]
[1729429994760,0.073188,68320.0,68319.0,0.073188]
[1729429998954,0.073188,68320.0,68319.0,0.14637846]
[1729430001663,0.073188,68320.0,68319.0,0.073188]
[1729430003062,0.073189,68319.0,68318.0,0.0002]
[1729430003773,1.573189,68319.0,68318.0,0.0002]
[1729430005254,0.073189,68319.0,68318.0,0.0002]
[1729430009358,0.073189,68319.0,68318.0,0.07339]
[1729430018262,0.073189,68319.0,68318.0,0.11730377]
[1729430018677,0.073189,68319.0,68318.0,0.07339]
[1729430020281,0.073189,68319.0,68318.0,0.0002]
[1729430022369,0.073189,68319.0,68318.0,0.04411258]
[1729430022571,0.073189,68319.0,68318.0,0.0002]
[1729430023281,0.073189,68319.0,68318.0,0.11730258]
[1729430025979,0.073189,68319.0,68318.0,0.07339]
[1729430026681,0.15397024,68319.0,68318.0,0.07339]
[1729430027772,0.15397024,68319.0,68318.0,0.0002]
[1729430028079,0.073189,68319.0,68318.0,0.0002]
[1729430028385,0.15397051,68319.0,68318.0,0.0002]
[1729430028679,0.1539707,68319.0,68318.0,0.0002]
[1729430030184,0.10903721,68319.0,68318.0,0.0002]
[1729430030375,0.15397136,68319.0,68318.0,0.0002]
[1729430030577,0.10903721,68319.0,68318.0,0.0002]
[1729430033390,0.073189,68319.0,68318.0,0.0002]
[1729430036581,0.073189,68319.0,68318.0,0.13194169]
[1729430037897,0.073189,68319.0,68318.0,0.07339]
[1729430038390,0.073189,68319.0,68318.0,0.13196921]
[1729430039889,0.073189,68319.0,68318.0,0.07339]
[1729430040591,0.073189,68319.0,68318.0,0.13196907]
[1729430040793,0.073189,68319.0,68318.0,0.07339]
[1729430042589,0.1090366,68319.0,68318.0,0.07339]
[1729430045598,0.10903646,68319.0,68318.0,0.07339]
[1729430048293,0.073189,68319.0,68318.0,0.07339]
[1729430048795,0.073189,68319.0,68318.0,0.13196907]
[1729430048983,0.073189,68319.0,68318.0,0.07339]
[1729430049892,0.073189,68319.0,68318.0,0.13196907]
[1729430050286,0.073189,68319.0,68318.0,0.07339]
[1729430050490,0.073189,68319.0,68318.0,0.13196907]
[1729430050995,0.073189,68319.0,68318.0,0.07339]
[1729430051389,0.073189,68319.0,68318.0,0.13196907]
[1729430054995,0.073189,68319.0,68318.0,0.07339]
[1729430055198,0.073189,68319.0,68318.0,0.13196907]
[1729430056500,0.073189,68319.0,68318.0,0.07339]
[1729430056501,0.1090362,68319.0,68318.0,0.07339]
[1729430057001,0.073189,68319.0,68318.0,0.07339]
[1729430061400,0.073189,68319.0,68318.0,0.0002]
[1729430062304,0.433989,68319.0,68318.0,0.0002]
[1729430062507,0.46983815,68319.0,68318.0,0.0002]
[1729430063306,0.433989,68319.0,68318.0,0.0002]
[1729430067599,0.433989,68319.0,68318.0,0.04413455]
[1729430070414,0.073189,68319.0,68318.0,0.04413455]
[1729430071118,0.073189,68319.0,68318.0,0.0002]
[1729430075916,0.073189,68319.0,68318.0,0.04413319]
[1729430077309,0.073189,68319.0,68318.0,0.0002]
[1729430077513,0.073189,68319.0,68318.0,0.04413294]
[1729430077718,0.073189,68319.0,68318.0,0.0002]
[1729430078622,0.10903816,68319.0,68318.0,0.0002]
[1729430078817,0.10903854,68319.0,68318.0,0.0002]
[1729430083728,0.10903786,68319.0,68318.0,0.0002]
[1729430086419,0.073189,68319.0,68318.0,0.04413338]
[1729430087125,0.073189,68319.0,68318.0,0.0002]
[1729430091924,0.073189,68319.0,68318.0,0.04414344]
[1729430092123,0.073189,68319.0,68318.0,0.0002]
[1729430092525,0.073189,68319.0,68318.0,0.04414276]
[1729430092922,0.073189,68319.0,68318.0,0.0002]
[1729430093518,0.10903741,68319.0,68318.0,0.0002]
[1729430094327,0.073189,68319.0,68318.0,0.0002]
[1729430097630,0.10903743,68319.0,68318.0,0.0002]
[1729430098030,0.073189,68319.0,68318.0,0.0002]
[1729430098325,0.10903743,68319.0,68318.0,0.0002]
[1729430101338,0.10903769,68319.0,68318.0,0.0002]
[1729430101638,0.073189,68319.0,68318.0,0.0002]
[1729430103129,0.073189,68319.0,68318.0,0.04413275]
[1729430103634,0.073189,68319.0,68318.0,0.0002]
[1729430106437,0.073189,68319.0,68318.0,0.04413275]
[1729430106637,0.073189,68319.0,68318.0,0.0002]
[1729430108532,0.1539751,68319.0,68318.0,0.0002]
[1729430110548,0.15397554,68319.0,68318.0,0.0002]
[1729430112042,0.51477554,68319.0,68318.0,0.0002]
[1729430113546,0.51477425,68319.0,68318.0,0.0002]
[1729430113844,0.46983944,68319.0,68318.0,0.0002]
[1729430114234,0.46983944,68319.0,68318.0,0.0326]
[1729430115140,0.46983775,68319.0,68318.0,0.0326]
[1729430115842,0.39664875,68319.0,68318.0,0.10579]
[1729430116035,0.45056,68326.0,68323.0,0.073185]
[1729430116343,0.073184,68324.0,68323.0,0.073185]
[1729430118747,0.47743635,68326.0,68320.0,0.04393275]
[1729430119050,0.073187,68322.0,68320.0,0.04393275]
[1729430119258,0.38767635,68326.0,68320.0,0.04393275]
[1729430119443,0.073187,68321.0,68320.0,0.04393275]
[1729430119747,0.073187,68321.0,68320.0,0.11712075]
[1729430120244,0.073187,68321.0,68320.0,0.073188]
[1729430123842,0.073189,68319.0,68318.0,0.0326]
[1729430124043,0.10903539,68319.0,68318.0,0.0326]
[1729430124641,0.10903609,68319.0,68318.0,0.0326]
[1729430125441,0.13594901,68319.0,68318.0,0.0326]
[1729430128144,0.13594901,68319.0,68318.0,0.10579]
[1729430128545,0.13594896,68319.0,68318.0,0.10579]
[1729430128745,0.03584704,68319.0,68318.0,0.46659]
[1729430129051,0.073186,68323.0,68322.0,0.073186]
[1729430129250,0.1090311,68323.0,68322.0,0.073186]
[1729430130652,0.0358451,68323.0,68322.0,0.073186]
[1729430131655,0.02699896,68324.0,68319.0,0.04393275]
[1729430131957,0.073183,68325.0,68323.0,0.073185]
[1729430132347,0.3608,68326.0,68323.0,0.073185]
[1729430132555,0.073184,68324.0,68323.0,0.073185]
[1729430134743,0.38771194,68326.0,68325.0,0.073183]
[1729430134956,0.073185,68324.0,68323.0,0.073184]
[1729430135662,0.38771194,68326.0,68319.0,0.04393275]
[1729430135854,0.10009394,68326.0,68325.0,0.073183]
[1729430136250,0.02691194,68326.0,68325.0,0.073183]
[1729430136455,0.073981,68327.0,68325.0,0.073183]
[1729430136760,0.073981,68327.0,68326.0,0.073182]
[1729430137348,0.0008,68327.0,68326.0,0.073182]
[1729430140155,0.0008,68327.0,68326.0,0.1170304]
[1729430141062,0.0008,68327.0,68326.0,0.073182]
[1729430141253,0.0008,68327.0,68326.0,0.11702978]
[1729430141455,0.0008,68327.0,68326.0,0.073182]
[1729430143355,0.0008,68327.0,68326.0,0.433982]
[1729430152672,0.0004,68332.0,68328.0,0.07318]
[1729430152872,0.00219544,68335.0,68332.0,0.073175]
[1729430152873,1e-08,68335.0,68332.0,0.073175]
[1729430153069,0.03583869,68334.0,68333.0,0.433974]
[1729430153572,0.40073539,68339.0,68335.0,0.073172]
[1729430154067,0.073168,68339.0,68335.0,0.073172]
[1729430154677,0.02587534,68343.0,68335.0,0.073172]
[1729430154874,0.073167,68341.0,68335.0,0.19167725]
[1729430157670,0.02587534,68343.0,68335.0,0.19167725]
[1729430158175,0.073166,68341.0,68335.0,0.19167725]
[1729430158979,0.073163,68344.0,68335.0,0.19167725]
[1729430159179,0.3608,68345.0,68335.0,0.19167725]
[1729430159180,0.073165,68342.0,68335.0,0.19167725]
[1729430159765,0.02657679,68344.0,68335.0,0.19167725]
[1729430159972,0.073166,68341.0,68335.0,0.19167725]
[1729430160679,0.073167,68340.0,68335.0,0.19167725]
[1729430161471,0.073166,68341.0,68335.0,0.073172]
[1729430161671,0.02657679,68344.0,68335.0,0.073172]
[1729430161672,0.073169,68339.0,68335.0,0.073172]
[1729430162480,0.073167,68340.0,68335.0,0.073172]
[1729430162679,0.073169,68339.0,68335.0,0.073172]
[1729430164177,0.073169,68338.0,68335.0,0.073172]
[1729430164973,0.38737679,68344.0,68335.0,0.073172]
[1729430165175,0.07317,68337.0,68335.0,0.073172]
[1729430168980,0.03623703,68336.0,68335.0,0.073172]
[1729430169287,0.08115631,68336.0,68335.0,0.073172]
[1729430174778,0.0004,68336.0,68335.0,0.073172]
[1729430174978,0.03623672,68336.0,68335.0,0.073172]
[1729430175182,0.08115562,68336.0,68335.0,0.073172]
[1729430175786,0.0004,68336.0,68335.0,0.073172]
[1729430178792,0.0004,68336.0,68335.0,0.11701017]
[1729430178985,0.0004,68336.0,68335.0,0.073172]
[1729430180093,0.0004,68336.0,68335.0,0.11701017]
[1729430180291,0.0004,68336.0,68335.0,0.073172]
[1729430184197,0.0362351,68336.0,68335.0,0.073172]
[1729430185595,0.08115187,68336.0,68335.0,0.073172]
[1729430191397,0.0004,68336.0,68335.0,0.073172]
[1729430192793,0.0004,68336.0,68335.0,0.2473806]
[1729430195291,0.0004,68336.0,68335.0,0.24744075]
[1729430195900,0.073571,68336.0,68335.0,0.073172]
[1729430196100,0.073571,68336.0,68331.0,0.073175]
[1729430196101,0.073176,68332.0,68331.0,0.073175]
[1729430196487,0.0004,68336.0,68329.0,0.033]
[1729430196694,0.0004,68336.0,68335.0,0.05854666]
[1729430196998,0.073571,68336.0,68335.0,0.05854666]
[1729430197204,0.0004,68336.0,68333.0,0.073173]
[1729430197504,0.073173,68334.0,68333.0,0.073173]
[1729430199203,0.15393215,68334.0,68333.0,0.073173]
[1729430200304,0.15393215,68334.0,68329.0,0.033]
[1729430200605,0.073173,68334.0,68333.0,0.073172]
[1729430200805,0.10901134,68334.0,68333.0,0.073172]
[1729430201011,0.15393226,68334.0,68333.0,0.073172]
[1729430202207,0.15393265,68334.0,68333.0,0.073172]
[1729430203198,0.08075965,68334.0,68333.0,0.073172]
[1729430204205,0.15393265,68334.0,68333.0,0.073172]
[1729430206800,0.073173,68334.0,68333.0,0.073172]
[1729430207514,0.09894992,68334.0,68333.0,0.073172]
[1729430213914,0.13478993,68334.0,68333.0,0.073172]
[1729430214115,0.09894992,68334.0,68333.0,0.073172]
[1729430215320,0.13478963,68334.0,68333.0,0.073172]
[1729430216112,0.1347896,68334.0,68333.0,0.073172]
[1729430222025,0.09894992,68334.0,68333.0,0.073172]
[1729430228340,0.09894992,68334.0,68333.0,0.11707739]
[1729430228727,0.09894992,68334.0,68333.0,0.04390539]
[1729430229041,0.073174,68333.0,68332.0,0.04390539]
[1729430229238,0.073176,68332.0,68331.0,0.073176]
[1729430230434,0.073177,68330.0,68329.0,0.10972238]
[1729430230835,0.073177,68330.0,68329.0,0.0658]
[1729430231239,0.073177,68330.0,68329.0,0.0331]
[1729430232032,0.073177,68330.0,68329.0,0.07702238]
[1729430234235,0.073177,68330.0,68329.0,0.0331]
[1729430235344,0.09961981,68330.0,68329.0,0.0331]
[1729430236939,0.18038746,68330.0,68329.0,0.0331]
[1729430237135,0.13546187,68330.0,68329.0,0.0331]
[1729430238248,0.1354616,68330.0,68329.0,0.0331]
[1729430243955,0.09961981,68330.0,68329.0,0.0331]
[1729430244454,0.09961981,68330.0,68329.0,0.07702238]
[1729430245156,0.09961981,68330.0,68329.0,0.0331]
[1729430246869,0.09961981,68330.0,68329.0,0.07702238]
[1729430247054,0.09961981,68330.0,68329.0,0.0331]
[1729430247457,0.09961981,68330.0,68329.0,0.07702238]
[1729430247953,0.09961981,68330.0,68329.0,0.0331]
[1729430248150,0.09961981,68330.0,68329.0,0.07702238]
[1729430248651,0.09961981,68330.0,68329.0,0.0331]
[1729430251854,0.13546183,68330.0,68329.0,0.0331]
[1729430252961,0.13546199,68330.0,68329.0,0.0331]
[1729430257572,0.1354619,68330.0,68329.0,0.0331]
[1729430258972,0.09961981,68330.0,68329.0,0.0331]
[1729430261476,0.09961981,68330.0,68329.0,0.05857813]
[1729430261663,0.073179,68329.0,68328.0,0.05857813]
[1729430261859,0.073179,68329.0,68327.0,0.05897813]
[1729430262060,0.07318,68328.0,68327.0,0.05897813]
[1729430262256,0.07318,68328.0,68327.0,0.073581]
[1729430266964,0.10902198,68328.0,68327.0,0.073581]
[1729430268171,0.03584198,68328.0,68327.0,0.073581]
[1729430268875,0.4773047,68333.0,68327.0,0.0004]
[1729430269062,0.4773047,68333.0,68332.0,0.073175]
[1729430269263,0.3875447,68333.0,68332.0,0.073175]
[1729430270073,0.46830985,68333.0,68332.0,0.073175]
[1729430270657,0.06258565,68333.0,68332.0,0.073175]
[1729430270872,0.13575965,68333.0,68332.0,0.073175]
[1729430272764,0.073179,68329.0,68328.0,0.073179]
[1729430273069,0.10901995,68329.0,68328.0,0.073179]
[1729430273979,0.073179,68329.0,68328.0,0.13175624]
[1729430274679,0.073179,68329.0,68328.0,0.073179]
[1729430274876,0.073179,68329.0,68328.0,0.13175624]
[1729430275065,0.0267447,68333.0,68327.0,0.05897724]
[1729430275266,0.073175,68332.0,68331.0,0.04391581]
[1729430275564,0.073175,68332.0,68331.0,0.0439165]
[1729430275764,0.3608,68335.0,68327.0,0.13215724]
[1729430275973,0.3608,68335.0,68331.0,0.04391575]
[1729430276666,0.38701313,68335.0,68331.0,0.04391575]
[1729430277168,0.38701313,68335.0,68327.0,0.13215724]
[1729430277463,0.073175,68332.0,68331.0,0.04391604]
[1729430277668,0.38701313,68335.0,68331.0,0.04391604]
[1729430277866,0.073175,68332.0,68331.0,0.04391604]
[1729430278468,0.073176,68331.0,68330.0,0.04391604]
[1729430279365,0.073176,68331.0,68329.0,0.04391565]
[1729430279683,0.073176,68331.0,68323.0,0.0002]
[1729430279684,0.073184,68324.0,68323.0,0.0002]
[1729430279973,0.433984,68324.0,68323.0,0.0002]
[1729430281369,0.46047726,68324.0,68323.0,0.0002]
[1729430281772,0.073189,68319.0,68318.0,0.0002]
[1729430282073,0.162949,68319.0,68318.0,0.0002]
[1729430282787,0.162949,68319.0,68301.0,0.10588612]
[1729430282788,0.43912,68318.0,68305.0,0.00219618]
[1729430283080,1.05056,68319.0,68299.0,0.0327]
[1729430283081,0.07321,68300.0,68299.0,0.0327]
[1729430283376,0.43401,68300.0,68299.0,0.0327]
[1729430283763,1.93401,68300.0,68299.0,0.0327]
[1729430287183,1.96027972,68300.0,68299.0,0.0327]
[1729430287676,1.93401,68300.0,68299.0,0.0327]
[1729430287866,0.43401,68300.0,68299.0,0.0327]
[1729430289375,0.07321,68300.0,68299.0,0.0327]
[1729430296274,0.073225,68286.0,68285.0,0.00219685]
[1729430296472,0.073225,68286.0,68275.0,0.3608]
[1729430296473,0.40110555,68286.0,68283.0,0.02669686]
[1729430296788,0.073227,68284.0,68283.0,0.02669686]
[1729430298184,0.073227,68284.0,68283.0,0.02769686]
[1729430299401,0.073233,68278.0,68277.0,0.073234]
[1729430304088,0.02926005,68277.0,68276.0,0.0322]
[1729430304393,0.073234,68277.0,68276.0,0.0322]
[1729430307183,1.8608,68280.0,68276.0,0.0322]
[1729430307384,0.073234,68277.0,68276.0,0.0322]
[1729430307597,0.073234,68277.0,68276.0,0.20718549]
[1729430308097,0.073234,68277.0,68276.0,0.20718535]
[1729430308481,0.073234,68277.0,68276.0,0.13434523]
[1729430311493,0.073234,68277.0,68276.0,0.13439797]
[1729430311687,0.073234,68277.0,68276.0,0.22222132]
[1729430311889,0.073234,68277.0,68276.0,0.13439797]
[1729430312093,0.073234,68277.0,68276.0,0.0322]
[1729430316701,0.073234,68277.0,68276.0,0.105435]
[1729430319295,0.073234,68277.0,68276.0,0.28062283]
[1729430319498,0.073234,68277.0,68276.0,0.20768264]
[1729430319895,0.073234,68277.0,68276.0,0.28069061]
[1729430320498,0.164194,68277.0,68276.0,0.20768264]
[1729430322399,0.073234,68277.0,68276.0,0.20776603]
[1729430322601,0.023334,68277.0,68276.0,0.20776603]
[1729430322790,0.073234,68277.0,68276.0,0.20776603]
[1729430323190,1.8608,68280.0,68276.0,0.13453103]
[1729430323412,1.8608,68280.0,68279.0,0.073232]
[1729430323704,1.934031,68280.0,68279.0,0.14629942]
[1729430324500,1.8608,68280.0,68279.0,0.17568778]
[1729430324901,1.5,68280.0,68279.0,0.17568778]
[1729430325304,0.02628458,68281.0,68280.0,0.073231]
[1729430325510,0.07323,68281.0,68280.0,0.20724388]
[1729430326205,0.07323,68281.0,68280.0,0.32933442]
[1729430327211,0.07323,68281.0,68280.0,0.104831]
[1729430327909,0.07323,68281.0,68280.0,0.0316]
[1729430329005,0.073233,68278.0,68277.0,0.07323211]
[1729430329393,0.38654383,68282.0,68276.0,0.10543211]
[1729430329595,0.38654383,68282.0,68276.0,0.07323211]
[1729430329596,0.073234,68277.0,68276.0,0.07323211]
[1729430329807,0.073234,68277.0,68276.0,0.24902175]
[1729430330107,0.073234,68277.0,68276.0,0.14646711]
[1729430330309,0.073234,68277.0,68276.0,0.24905321]
[1729430330495,0.073234,68277.0,68276.0,0.14646711]
[1729430332011,0.073234,68277.0,68276.0,0.073235]
[1729430332501,0.38654383,68282.0,68275.0,0.07323211]
[1729430332698,0.164191,68281.0,68280.0,0.07323]
[1729430334001,0.073231,68281.0,68280.0,0.07323]
[1729430334209,0.073231,68281.0,68280.0,0.17573625]
[1729430335812,0.073231,68281.0,68280.0,0.2979153]
[1729430336203,0.073231,68281.0,68280.0,0.17573625]
[1729430336402,0.073231,68281.0,68280.0,0.29790032]
[1729430336597,0.073231,68281.0,68280.0,0.17573625]
[1729430337003,0.073231,68281.0,68280.0,0.2246828]
[1729430338804,0.073231,68281.0,68280.0,0.10250625]
[1729430339210,0.073231,68281.0,68280.0,0.10057552]
[1729430340515,0.073231,68281.0,68280.0,0.18848533]
[1729430340904,0.073231,68281.0,68280.0,0.18848528]
[1729430341409,0.07323,68281.0,68280.0,0.05860691]
[1729430342713,0.073231,68280.0,68279.0,0.05860691]
[1729430343124,0.073235,68276.0,68275.0,0.073236]
[1729430343506,0.38654383,68282.0,68274.0,0.07365863]
[1729430343707,0.38694383,68282.0,68279.0,0.05860878]
[1729430344006,0.38694383,68282.0,68274.0,0.07385863]